bitfinex/quotes_ETHUSD_20241030
["timestamp","ask_amount","ask_price","bid_price","bid_amount"]
[1730324184980,0.05285795,2654.6,2654.3,5.92989]
[1730324188513,0.05285795,2654.6,2654.3,2.1625]
[1730324188870,0.05285795,2654.6,2654.3,5.92991]
[1730324190503,0.05285795,2654.6,2654.3,5.92983]
[1730324190722,0.05285795,2654.6,2654.4,3.76732]
[1730324190937,3.76677,2654.8,2654.4,3.76732]
[1730324191146,0.05079074,2654.5,2654.3,5.92983]
[1730324191346,3.76677,2654.8,2654.3,5.92983]
[1730324191533,0.05068444,2654.4,2654.3,5.92983]
[1730324191703,3.7669,2654.7,2654.3,5.92983]
[1730324192148,0.05092526,2654.6,2654.3,5.92983]
[1730324194012,0.05092526,2654.6,2654.3,2.1625]
[1730324194855,0.05092526,2654.6,2654.1,3.76764]
[1730324194856,3.7674,2654.4,2653.5,4.6159]
[1730324195148,3.76766,2654.2,2653.8,0.55]
[1730324195653,0.04513982,2654.1,2653.8,0.55]
[1730324195839,3.76766,2654.2,2653.8,0.55]
[1730324196548,1.6564,2654.5,2653.8,0.55]
[1730324196715,3.76769,2654.2,2653.8,0.55]
[1730324197280,0.04361068,2654.1,2653.8,0.55]
[1730324197975,0.04361068,2654.1,2653.3,3.76888]
[1730324197976,3.76854,2653.6,2653.1,5.27146]
[1730324198283,3.76854,2653.6,2653.1,1.5023]
[1730324198284,0.04304832,2653.5,2653.1,1.5023]
[1730324198851,3.81165832,2653.5,2653.1,1.5023]
[1730324199072,3.76875,2653.4,2653.2,0.55]
[1730324199277,0.04304832,2653.5,2653.2,0.55]
[1730324199490,0.04272262,2653.3,2653.2,0.55]
[1730324199647,3.76907,2653.2,2652.9,1.5898]
[1730324199965,3.76925,2653.1,2652.9,1.5898]
[1730324200170,3.8118409,2653.1,2652.9,1.5898]
[1730324200342,0.0425909,2653.1,2652.9,1.5898]
[1730324200542,3.76931,2653.0,2652.9,1.5898]
[1730324200744,3.76931,2653.0,2652.6,3.76981]
[1730324200745,3.76931,2653.0,2652.7,1.6534]
[1730324200968,3.81178426,2653.0,2652.7,1.6534]
[1730324201983,1.5665,2654.5,2653.1,1.5464]
[1730324202169,3.76785,2654.1,2653.5,0.55]
[1730324202342,3.76768,2654.2,2653.7,0.55]
[1730324202546,3.76775,2654.1,2653.7,0.55]
[1730324204625,7.53558,2654.1,2653.7,0.55]
[1730324204788,3.76775,2654.1,2653.7,0.55]
[1730324204979,3.76791,2654.0,2653.7,0.55]
[1730324205619,3.76791,2654.0,2653.7,0.05]
[1730324205919,3.76791,2654.0,2653.6,1.626]
[1730324206426,1.963391,2654.0,2653.3,1.522]
[1730324206628,1.5866,2653.4,2652.8,0.79007212]
[1730324206923,3.76945,2652.9,2652.8,0.79007212]
[1730324207328,5.33415,2652.9,2652.8,0.79007212]
[1730324207484,6.29984784,2652.9,2652.8,0.79007212]
[1730324207685,6.89246409,2652.9,2652.8,0.79007212]
[1730324208386,6.29984784,2652.9,2652.8,0.79007212]
[1730324209292,15.93105454,2652.9,2652.8,0.79007212]
[1730324209724,15.94105454,2652.9,2652.8,2.12e-06]
[1730324210503,14.9753567,2652.9,2652.8,2.12e-06]
[1730324210819,3.0,2652.8,2652.5,1.58014424]
[1730324211018,3.76988,2652.6,2652.5,1.58014424]
[1730324211224,3.77002,2652.5,2652.4,0.005]
[1730324212921,5.33862,2652.5,2652.4,0.005]
[1730324213590,5.33919,2652.1,2651.2,0.1274825]
[1730324214194,10.33919,2652.1,2651.2,0.1274825]
[1730324214900,13.33919,2652.1,2651.2,0.1274825]
[1730324215720,5.33543,2651.3,2651.2,0.1274825]
[1730324216044,6.746133,2651.3,2651.2,0.1274825]
[1730324216210,5.33543,2651.3,2651.2,2.5e-06]
[1730324224555,8.33543,2651.3,2651.2,2.5e-06]
[1730324225367,13.93449548,2651.3,2651.2,2.5e-06]
[1730324225704,13.99964771,2651.3,2651.2,2.5e-06]
[1730324225919,13.93449548,2651.3,2651.2,2.5e-06]
[1730324226703,5.33543,2651.3,2651.2,2.5e-06]
[1730324227220,3.77173,2651.3,2651.2,2.5e-06]
[1730324228571,4.684943,2651.3,2651.2,2.5e-06]
[1730324229514,9.684943,2651.3,2651.2,2.5e-06]
[1730324229705,10.28400848,2651.3,2651.2,2.5e-06]
[1730324231104,14.90720848,2651.3,2651.2,2.5e-06]
[1730324233123,14.91720848,2651.3,2651.2,2.5e-06]
[1730324234015,15.44578569,2651.3,2651.2,2.5e-06]
[1730324235719,15.83548564,2651.3,2651.2,2.5e-06]
[1730324237484,15.83548564,2651.3,2649.7,3.77393]
[1730324237485,13.36661,2649.7,2649.6,3.28e-06]
[1730324237686,11.96522733,2649.7,2649.6,3.28e-06]
[1730324238658,1.5038,2648.7,2647.1,2.34700985]
[1730324238825,3.77654,2648.0,2647.2,5.34596]
[1730324239024,3.77654,2648.0,2647.4,3.77718]
[1730324239221,3.77687,2647.7,2647.2,5.34589]
[1730324239424,3.77683,2647.8,2647.2,5.34589]
[1730324239623,3.77636,2648.1,2647.2,1.5684]
[1730324239851,3.77636,2648.1,2647.6,1.623]
[1730324240023,7.55279,2648.1,2647.6,1.623]
[1730324240226,3.77639,2648.1,2647.6,1.623]
[1730324240436,3.77537,2648.8,2648.3,1.5796]
[1730324240654,7.54916,2649.3,2648.3,1.5796]
[1730324240957,3.77502,2649.0,2648.3,1.5796]
[1730324241116,3.77539,2648.8,2648.4,0.55]
[1730324241318,3.77509,2649.0,2648.4,4.32579]
[1730324241519,1.37581766,2649.3,2648.3,1.5796]
[1730324241721,3.77566,2648.6,2648.3,1.5796]
[1730324242158,3.77538,2648.8,2648.3,1.5796]
[1730324242159,3.77545,2648.7,2648.3,1.5796]
[1730324242660,1.01502977,2649.2,2648.4,0.55]
[1730324242860,3.77524,2648.9,2648.4,4.32586]
[1730324243155,3.77506,2649.0,2648.5,3.7757]
[1730324243359,3.77506,2649.0,2648.6,0.55]
[1730324243653,3.77495,2649.1,2648.4,0.55]
[1730324243854,3.77495,2649.1,2648.4,4.32584]
[1730324243855,3.77522,2648.9,2648.4,4.32584]
[1730324244736,3.77531,2648.8,2648.4,0.55]
[1730324248335,3.77509,2649.0,2648.4,4.32584]
[1730324248787,3.77515,2648.9,2648.4,4.32584]
[1730324249494,1.5664,2649.6,2648.4,4.32584]
[1730324249495,1.1919194,2649.7,2649.1,5.86206]
[1730324249780,3.77423,2649.6,2649.1,2.0872]
[1730324250079,3.77423,2649.6,2649.1,5.86205]
[1730324250569,3.77423,2649.6,2649.1,5.86206]
[1730324250774,3.77409,2649.7,2649.1,5.86206]
[1730324250979,3.77416,2649.6,2649.1,5.86206]
[1730324251161,3.77409,2649.7,2649.3,0.55]
[1730324251485,3.77382,2649.9,2649.4,3.77437]
[1730324251772,3.77382,2649.9,2649.6,1.5142]
[1730324251976,3.7735,2650.1,2649.6,1.5142]
[1730324251977,3.77367,2650.0,2649.6,1.5142]
[1730324252937,3.77375,2649.9,2649.6,1.5142]
[1730324253858,3.7736,2650.0,2649.7,0.55]
[1730324254999,3.77373,2649.9,2649.7,0.55]
[1730324255143,3.77362,2650.0,2649.7,0.55]
[1730324255545,3.7735,2650.1,2649.7,0.55]
[1730324255742,3.77358,2650.0,2649.7,0.55]
[1730324255986,3.77374,2649.9,2649.7,0.55]
[1730324256152,0.06527341,2650.3,2649.9,0.55]
[1730324256153,3.83842341,2650.3,2649.9,0.55]
[1730324256355,3.77315,2650.3,2649.9,0.55]
[1730324256565,3.77239,2650.9,2650.0,1.5842]
[1730324256789,7.54482,2650.9,2650.5,0.55]
[1730324256984,3.83746196,2651.0,2650.7,0.55]
[1730324257193,0.06528196,2651.0,2650.7,0.55]
[1730324257557,3.83751196,2651.0,2650.7,0.55]
[1730324257884,0.06528196,2651.0,2650.7,0.55]
[1730324258044,3.7723,2650.9,2650.7,0.55]
[1730324258683,0.06528196,2651.0,2650.7,0.55]
[1730324258885,3.83746196,2651.0,2650.7,0.55]
[1730324259384,0.06528196,2651.0,2650.7,4.32258]
[1730324259554,3.77182,2651.3,2650.9,0.55]
[1730324259746,3.77182,2651.3,2651.0,1.6423]
[1730324259981,3.77153,2651.5,2651.1,0.55]
[1730324259982,3.77156,2651.5,2651.1,0.55]
[1730324260192,3.77152,2651.5,2651.1,0.55]
[1730324260862,3.77128,2651.7,2651.1,0.55]
[1730324261080,3.77062,2652.1,2651.1,4.32194]
[1730324261081,3.7714,2651.6,2651.1,4.32194]
[1730324261245,3.77117,2651.7,2651.2,3.77186]
[1730324261569,3.77145,2651.5,2651.4,2.1804]
[1730324264501,3.77126,2651.7,2651.5,0.55]
[1730324265564,3.77111,2651.8,2651.5,0.55]
[1730324265773,3.77102,2651.8,2651.5,0.55]
[1730324268094,3.77093,2651.9,2651.5,0.55]
[1730324268299,3.77102,2651.8,2651.5,0.55]
[1730324268592,3.77117,2651.7,2651.5,0.55]
[1730324268995,7.54189,2651.9,2651.5,0.55]
[1730324269494,3.77093,2651.9,2651.5,0.55]
[1730324270161,3.77093,2651.9,2651.5,4.32144]
[1730324270903,3.83594406,2652.1,2651.7,0.55]
[1730324271204,3.77041,2652.3,2651.8,1.6232]
[1730324271360,3.77051,2652.2,2651.8,1.6232]
[1730324271560,3.77064,2652.1,2651.8,1.6232]
[1730324274062,3.77051,2652.2,2651.8,1.6232]
[1730324274284,7.5411,2652.2,2651.9,0.55]
[1730324274484,7.54106,2652.2,2651.9,0.55]
[1730324274670,3.77028,2652.4,2651.9,0.55]
[1730324274882,3.77033,2652.3,2651.9,0.62541]
[1730324275398,3.77004,2652.5,2652.1,0.55]
[1730324275758,3.76997,2652.6,2652.2,1.508]
[1730324276022,3.77008,2652.5,2652.2,1.508]
[1730324276223,3.76997,2652.6,2652.2,1.508]
[1730324276590,3.76997,2652.6,2652.2,1.58340063]
[1730324277130,7.53997,2652.6,2652.3,0.55]
[1730324277330,3.76989,2652.6,2652.3,0.55]
[1730324277532,3.7701,2652.5,2652.3,0.55]
[1730324277890,3.76989,2652.6,2652.3,0.55]
[1730324278090,3.77004,2652.5,2652.3,0.55]
[1730324278991,3.7699,2652.6,2652.3,0.55]
[1730324279617,3.77008,2652.5,2652.3,0.55]
[1730324280132,3.76975,2652.7,2652.3,0.55]
[1730324280427,3.76988,2652.6,2652.3,0.55]
[1730324280733,3.77003,2652.5,2652.3,0.55]
[1730324282895,3.76995,2652.6,2652.3,0.55]
[1730324284640,3.76975,2652.7,2652.3,0.55]
[1730324284849,1.6435,2652.6,2651.5,4.5747]
[1730324285143,3.77117,2651.7,2651.5,1.5747]
[1730324285294,3.7713,2651.6,2651.5,1.5747]
[1730324285925,3.77169,2651.4,2651.1,1.5697]
[1730324286136,3.7718,2651.3,2651.1,1.5697]
[1730324287269,0.535002,2652.0,2650.8,1.5345]
[1730324287270,3.77187,2651.2,2650.8,1.5345]
[1730324287394,3.77203,2651.1,2650.8,1.5345]
[1730324287598,3.77189,2651.2,2650.8,1.5345]
[1730324288516,3.77189,2651.2,2650.9,0.55]
[1730324288922,3.77205,2651.1,2650.9,0.55]
[1730324290052,3.77205,2651.1,2650.8,1.5345]
[1730324290053,3.7723,2650.9,2650.8,1.5345]
[1730324290255,3.7723,2650.9,2650.8,0.55]
[1730324290572,3.77244,2650.8,2650.5,1.6555]
[1730324290852,3.77259,2650.7,2650.5,1.6555]
[1730324292153,3.7726,2650.7,2650.5,1.6555]
[1730324293316,3.77236,2650.9,2650.5,1.6555]
[1730324293651,3.77251,2650.8,2650.5,1.6555]
[1730324294351,3.77236,2650.9,2650.5,1.6555]
[1730324295155,3.77216,2651.1,2650.6,4.32273]
[1730324295354,3.77192,2651.2,2650.6,8.09538]
[1730324295557,3.77192,2651.2,2650.8,0.55]
[1730324296218,3.77192,2651.2,2650.6,4.32261]
[1730324296418,3.77212,2651.1,2650.6,4.32261]
[1730324297038,7.54385,2651.2,2650.8,0.55]
[1730324297251,3.77173,2651.3,2650.8,0.55]
[1730324297425,3.77173,2651.3,2650.8,4.32232]
[1730324297625,3.77173,2651.3,2650.8,4.3977613]
[1730324297827,3.77173,2651.3,2650.8,4.32232]
[1730324298216,3.77173,2651.3,2650.8,0.55]
[1730324298579,3.77173,2651.3,2650.9,3.77228]
[1730324298729,3.77173,2651.3,2650.8,0.55]
[1730324298730,1.555,2651.6,2651.1,3.77195]
[1730324298931,3.77125,2651.7,2651.2,0.55]
[1730324299165,3.77125,2651.7,2651.2,4.32184]
[1730324299166,3.77132,2651.6,2651.2,4.32184]
[1730324299466,3.77132,2651.6,2651.1,4.322]
[1730324299845,3.77148,2651.5,2651.1,0.55]
[1730324300037,7.54276,2651.6,2651.1,4.32196]
[1730324300473,3.77132,2651.6,2651.1,4.32196]
[1730324300773,7.54271,2651.6,2651.1,4.32196]
[1730324301460,3.77145,2651.5,2651.1,0.55]
[1730324301632,3.77132,2651.6,2651.1,4.32195]
[1730324302071,7.54271,2651.6,2651.1,4.32195]
[1730324302565,3.77152,2651.5,2651.1,4.32195]
[1730324303356,3.77132,2651.6,2651.1,4.32192]
[1730324303563,7.54271,2651.6,2651.1,4.322]
[1730324304064,7.54275,2651.6,2651.1,4.32194]
[1730324304269,3.77132,2651.6,2651.1,8.09386]
[1730324304669,3.77148,2651.5,2651.1,4.32192]
[1730324304863,7.54276,2651.6,2651.1,4.32192]
[1730324305037,3.77132,2651.6,2651.1,4.32192]
[1730324305239,7.54274,2651.6,2651.1,4.32192]
[1730324305478,3.77132,2651.6,2651.3,0.55]
[1730324308485,3.77113,2651.8,2651.3,0.55]
[1730324308634,3.77117,2651.7,2651.3,0.55]
[1730324308841,3.77133,2651.6,2651.3,0.55]
[1730324309982,3.77117,2651.7,2651.3,0.55]
[1730324309983,3.77122,2651.7,2651.3,0.55]
[1730324310287,3.77132,2651.6,2651.3,0.55]
[1730324310441,3.77132,2651.6,2651.0,5.41644]
[1730324310442,3.77132,2651.6,2651.1,0.55]
[1730324310636,3.77098,2651.9,2651.3,1.5363]
[1730324310973,3.77098,2651.9,2651.6,0.55]
[1730324311173,3.77076,2652.0,2651.7,1.5363]
[1730324313153,3.77064,2652.1,2651.7,1.5363]
[1730324313490,3.77089,2651.9,2651.7,1.5363]
[1730324316186,3.77064,2652.1,2651.7,1.5363]
[1730324316388,3.77065,2652.1,2651.7,1.5363]
[1730324318791,7.54133,2652.1,2651.7,1.5363]
[1730324319455,3.77065,2652.1,2651.7,1.5363]
[1730324319821,7.54137,2652.1,2651.7,1.5363]
[1730324319973,3.77065,2652.1,2651.8,0.55]
[1730324320357,1.6102,2652.4,2651.8,0.55]
[1730324320358,3.77083,2652.0,2651.8,0.55]
[1730324321097,7.54165,2652.0,2651.8,0.55]
[1730324321893,3.77082,2652.0,2651.8,0.55]
[1730324322512,3.77048,2652.2,2651.8,0.55]
[1730324322816,3.77048,2652.2,2651.8,4.32101]
[1730324323274,3.77047,2652.2,2651.8,4.32088]
[1730324325715,3.77033,2652.3,2651.8,8.09183]
[1730324325921,3.77021,2652.4,2651.8,4.32088]
[1730324326219,3.77041,2652.3,2651.8,4.32088]
[1730324326388,3.77015,2652.5,2651.9,1.0756]
[1730324326725,3.77049,2652.2,2652.0,0.55]
[1730324326878,3.77033,2652.3,2652.0,0.55]
[1730324330697,7.54075,2652.3,2652.0,0.55]
[1730324331325,0.35,2652.0,2651.9,1.0756]
[1730324332986,0.35,2652.0,2651.9,4.84648]
[1730324333496,0.35,2652.0,2651.9,5.39648]
[1730324334887,0.35,2652.0,2651.9,8.39648]
[1730324335502,0.35,2652.0,2651.9,8.40648]
[1730324340936,3.77868,2653.5,2651.9,8.40648]
[1730324340937,1.046,2653.2,2652.2,0.01]
[1730324341235,1.046,2653.2,2652.8,0.55]
[1730324341533,3.76925,2653.1,2652.8,0.55]
[1730324341738,1.046,2653.2,2652.8,0.55]
[1730324341739,4.81513,2653.2,2652.8,0.55]
[1730324342223,3.76913,2653.2,2652.8,4.31958]
[1730324342425,3.7689,2653.3,2652.8,4.39488474]
[1730324342945,3.7689,2653.3,2652.8,4.3195]
[1730324343447,0.06523817,2653.5,2653.0,0.55]
[1730324343744,3.76881,2653.4,2653.2,0.55]
[1730324343941,3.76861,2653.5,2653.2,0.55]
[1730324344103,3.76861,2653.5,2653.2,1.5526]
[1730324344297,4.80936,2653.6,2653.2,5.32161]
[1730324344703,3.76846,2653.6,2653.2,1.5526]
[1730324345217,7.53706,2653.6,2653.2,1.5526]
[1730324345603,3.76846,2653.6,2653.2,1.5526]
[1730324346503,3.76846,2653.6,2653.2,1.62797115]
[1730324346704,3.76846,2653.6,2653.2,5.39700115]
[1730324347217,7.53703,2653.6,2653.2,1.5526]
[1730324347444,3.76846,2653.6,2653.2,1.5526]
[1730324348647,7.53701,2653.6,2653.2,1.5526]
[1730324349144,3.76846,2653.6,2653.2,1.5526]
[1730324350414,4.76918,2653.8,2653.2,5.32161]
[1730324350616,3.76833,2653.7,2653.3,0.07537115]
[1730324351180,3.76833,2653.7,2653.3,3.84425115]
[1730324351931,3.76833,2653.7,2653.2,5.32153]
[1730324352448,7.53658,2653.8,2653.3,3.8442403]
[1730324352766,3.7684,2653.7,2653.3,0.0753703]
[1730324352928,3.7684,2653.7,2653.2,5.32153]
[1730324353132,3.7684,2653.7,2653.2,9.09048]
[1730324353672,3.7684,2653.7,2653.2,5.32153]
[1730324354174,3.7684,2653.7,2653.3,3.76886]
[1730324355373,3.7684,2653.7,2653.4,0.55]
[1730324361778,3.7682,2653.8,2653.4,4.31868]
[1730324363081,3.7682,2653.8,2653.6,0.55]
[1730324363844,3.76805,2653.9,2653.6,0.55]
[1730324364968,4.87421,2654.0,2653.6,0.55]
[1730324365360,8.64219,2654.0,2653.6,0.55]
[1730324365864,3.7681,2653.9,2653.6,0.55]
[1730324366863,3.7681,2653.9,2653.6,1.3187]
[1730324367796,7.53593,2654.0,2653.6,1.3187]
[1730324368093,7.53591,2654.0,2653.6,1.3187]
[1730324370357,3.7682,2653.8,2653.6,1.3187]
[1730324370974,3.7682,2653.8,2653.5,0.55]
[1730324371177,3.76822,2653.8,2653.5,0.55]
[1730324373970,3.76802,2654.0,2653.5,0.55]
[1730324374194,3.76825,2653.8,2653.5,0.55]
[1730324374508,3.76833,2653.7,2653.5,0.55]
[1730324378501,3.76807,2653.9,2653.5,0.55]
[1730324378702,3.76807,2653.9,2653.6,0.07536186]
[1730324378913,3.76807,2653.9,2653.7,0.55]
[1730324379208,3.76807,2653.9,2653.5,4.31859]
[1730324379368,3.7679,2654.0,2653.5,4.31855]
[1730324379979,3.76804,2653.9,2653.5,4.31855]
[1730324383927,7.53615,2653.9,2653.5,4.31855]
[1730324384099,3.76826,2653.8,2653.6,0.07536019]
[1730324384285,3.76826,2653.8,2653.5,0.62536256]
[1730324385388,3.76834,2653.7,2653.5,0.62536256]
[1730324385717,3.7682,2653.8,2653.5,0.62536256]
[1730324386017,3.76833,2653.7,2653.6,0.55]
[1730324386481,3.76818,2653.8,2653.2,0.8202]
[1730324386679,3.76839,2653.7,2653.3,0.55]
[1730324386882,0.7582,2653.9,2653.3,0.55]
[1730324386883,3.76818,2653.8,2653.3,0.55]
[1730324387081,3.76847,2653.6,2653.3,0.55]
[1730324392603,3.76847,2653.6,2653.2,0.55]
[1730324392827,3.76847,2653.6,2653.2,4.31901]
[1730324394431,7.53702,2653.6,2653.2,4.31901]
[1730324394636,3.76847,2653.6,2653.2,4.31901]
[1730324396119,3.76847,2653.6,2653.4,0.55]
[1730324396458,3.76847,2653.6,2653.2,4.31901]
[1730324397550,7.53702,2653.6,2653.2,4.31901]
[1730324398745,3.76847,2653.6,2653.2,4.31901]
[1730324399115,7.53702,2653.6,2653.2,4.31901]
[1730324399311,3.76861,2653.5,2653.2,0.55]
[1730324400243,3.76861,2653.5,2653.0,4.5483]
[1730324400244,0.7558,2653.5,2653.0,0.779]
[1730324400450,3.76954,2652.9,2652.6,1.25293554]
[1730324400647,3.76954,2652.9,2652.7,0.11794883]
[1730324400844,3.76954,2652.9,2652.6,0.7815]
[1730324401044,3.76954,2652.9,2652.7,0.11795382]
[1730324401240,3.76954,2652.9,2652.6,0.7815]
[1730324401482,3.68283224,2652.9,2652.6,0.7815]
[1730324401794,3.76961,2652.8,2652.6,0.7815]
[1730324401974,3.76974,2652.7,2652.4,0.81]
[1730324402149,3.76974,2652.7,2652.5,0.2826813]
[1730324402344,3.76974,2652.7,2652.4,0.81]
[1730324403282,3.76961,2652.8,2652.4,0.81]
[1730324403283,3.76961,2652.8,2652.5,0.55]
[1730324403582,3.76981,2652.7,2652.5,0.55]
[1730324404654,3.76981,2652.7,2652.4,0.55]
[1730324407377,4.54958,2652.7,2652.3,3.55]
[1730324407611,1.611712,2652.7,2651.9,4.52279]
[1730324407811,3.77017,2652.4,2651.9,4.52279]
[1730324407986,3.77032,2652.3,2651.9,4.64076358]
[1730324408195,3.77061,2652.1,2651.6,0.18875876]
[1730324408410,3.77061,2652.1,2651.5,3.77143]
[1730324408411,3.77073,2652.0,2651.5,3.77143]
[1730324408616,3.77073,2652.0,2651.5,4.05357692]
[1730324408926,3.77073,2652.0,2651.5,3.77143]
[1730324409087,3.7709,2651.9,2651.5,3.77143]
[1730324409294,3.77073,2652.0,2651.5,3.77143]
[1730324409516,3.77091,2651.9,2651.5,3.55]
[1730324409995,3.77091,2651.9,2651.5,4.32144]
[1730324411434,3.77059,2652.1,2651.5,4.32144]
[1730324411590,3.77059,2652.1,2651.5,8.09281]
[1730324411591,3.77075,2652.0,2651.5,8.09281]
[1730324411994,3.77103,2651.8,2651.4,0.752]
[1730324412214,7.54213,2651.8,2651.4,0.752]
[1730324412528,3.77103,2651.8,2651.4,0.752]
[1730324412925,3.77117,2651.7,2651.4,0.752]
[1730324413436,3.77117,2651.7,2651.4,0.55]
[1730324414710,3.77132,2651.6,2651.4,0.55]
[1730324415102,3.77132,2651.6,2651.3,0.55]
[1730324415508,3.77117,2651.7,2651.1,3.55]
[1730324415746,3.77117,2651.7,2651.3,0.55]
[1730324416644,7.54243,2651.7,2651.3,0.55]
[1730324416846,3.77137,2651.6,2651.2,3.0]
[1730324417018,3.77137,2651.6,2651.3,0.55]
[1730324417219,3.77117,2651.7,2651.3,0.55]
[1730324417427,3.77145,2651.5,2651.3,0.55]
[1730324417809,3.77131,2651.6,2651.3,0.55]
[1730324419012,3.77117,2651.7,2651.3,0.55]
[1730324420509,3.7714,2651.6,2651.2,0.55]
[1730324420837,3.7714,2651.6,2651.2,3.77186]
[1730324421044,3.7714,2651.6,2651.3,0.55]
[1730324421346,0.7957,2651.8,2651.3,0.55]
[1730324421511,3.77117,2651.7,2651.3,0.55]
[1730324423351,7.54246,2651.7,2651.3,0.55]
[1730324423545,3.77117,2651.7,2651.3,0.55]
[1730324424315,7.54247,2651.7,2651.3,0.55]
[1730324425351,3.77117,2651.7,2651.3,0.55]
[1730324425722,7.54242,2651.7,2651.3,0.55]
[1730324426249,3.77117,2651.7,2651.3,0.55]
[1730324428171,7.54246,2651.7,2651.3,0.55]
[1730324428975,3.77132,2651.6,2651.3,0.55]
[1730324431265,3.7706,2652.1,2651.7,0.55]
[1730324431578,3.7706,2652.1,2651.8,0.7895]
[1730324431944,0.06973081,2652.0,2651.8,0.7895]
[1730324433479,7.54109,2652.2,2651.8,0.7895]
[1730324433777,0.06909921,2651.9,2651.8,1.3395]
[1730324433981,7.54109,2652.2,2651.8,0.7895]
[1730324434189,0.06909921,2651.9,2651.8,1.3395]
[1730324434396,3.77053,2652.2,2651.8,0.7895]
[1730324434560,0.06909921,2651.9,2651.8,1.3395]
[1730324434764,7.54111,2652.2,2651.8,0.7895]
[1730324434968,0.06901646,2651.9,2651.8,1.3395]
[1730324435179,7.54111,2652.2,2651.8,1.3395]
[1730324435375,0.06901646,2651.9,2651.8,1.3395]
[1730324435684,0.06904353,2651.9,2651.8,1.3395]
[1730324435885,7.54111,2652.2,2651.8,1.3395]
[1730324436086,0.06904353,2651.9,2651.8,1.3395]
[1730324436287,7.54111,2652.2,2651.8,1.3395]
[1730324436586,0.06904353,2651.9,2651.8,1.3395]
[1730324436769,7.54111,2652.2,2651.8,1.3395]
[1730324436977,0.06901646,2651.9,2651.8,1.3395]
[1730324437172,7.54111,2652.2,2651.8,1.3395]
[1730324437389,0.06901646,2651.9,2651.8,1.3395]
[1730324437982,7.54111,2652.2,2651.8,1.3395]
[1730324438147,0.06901646,2651.9,2651.8,1.3395]
[1730324438343,7.54111,2652.2,2651.8,1.3395]
[1730324438547,0.06901646,2651.9,2651.8,1.3395]
[1730324438748,3.77065,2652.1,2651.8,1.3395]
[1730324438981,0.06901607,2651.9,2651.8,1.3395]
[1730324439187,3.77065,2652.1,2651.8,1.3395]
[1730324439388,0.06901607,2651.9,2651.8,1.3395]
[1730324439550,3.77065,2652.1,2651.8,1.3395]
[1730324439750,0.06901607,2651.9,2651.8,1.3395]
[1730324440063,0.06901957,2651.9,2651.8,1.3395]
[1730324440384,3.77065,2652.1,2651.8,1.3395]
[1730324440594,0.06901957,2651.9,2651.8,1.3395]
[1730324440744,3.77065,2652.1,2651.8,1.3395]
[1730324440948,0.06901957,2651.9,2651.8,1.3395]
[1730324441150,3.77065,2652.1,2651.8,1.3395]
[1730324441385,0.06901957,2651.9,2651.8,1.3395]
[1730324441569,3.77065,2652.1,2651.8,1.3395]
[1730324442097,0.06912453,2652.0,2651.8,1.3395]
[1730324448599,0.7712,2652.3,2651.8,1.3395]
[1730324449102,0.06694589,2652.2,2651.9,0.55]
[1730324449401,0.7609,2652.5,2651.9,4.32087]
[1730324449769,0.06715359,2652.4,2651.9,4.32087]
[1730324452896,1.0496,2652.1,2651.9,4.32087]
[1730324457307,1.0496,2652.1,2652.0,4.32073]
[1730324467016,1.0496,2652.1,2652.0,5.13203]
[1730324467310,1.0496,2652.1,2652.0,10.24647576]
[1730324467512,1.0496,2652.1,2652.0,11.14651941]
[1730324467513,0.57877694,2652.1,2652.0,11.14651941]
[1730324467727,0.7668,2653.1,2652.9,0.55]
[1730324468013,0.05875611,2653.0,2652.9,0.55]
[1730324468184,0.05875611,2653.0,2652.9,4.31945]
[1730324468374,0.7668,2653.3,2652.9,4.31945]
[1730324468812,0.05897563,2653.2,2652.9,4.31945]
[1730324469216,0.7668,2653.3,2652.9,4.31945]
[1730324469407,0.05887077,2653.1,2652.9,4.31945]
[1730324469712,0.05876591,2653.0,2652.9,4.31939]
[1730324469917,0.7668,2653.3,2652.9,4.31939]
[1730324470279,0.05897563,2653.2,2652.9,4.31939]
[1730324470481,0.7668,2653.3,2652.9,4.31939]
[1730324470692,0.05897563,2653.2,2652.9,4.31939]
[1730324470898,0.7668,2653.3,2652.9,4.31939]
[1730324471107,0.05897563,2653.2,2652.9,4.31939]
[1730324471314,0.757,2653.5,2653.0,3.7693]
[1730324471520,0.05918532,2653.4,2653.0,3.7693]
[1730324472218,0.05918532,2653.4,2652.9,4.39483077]
[1730324472521,0.05918532,2653.4,2652.9,4.31945]
[1730324473730,0.05918532,2653.4,2652.9,4.39483073]
[1730324473891,0.05918532,2653.4,2653.0,3.76928]
[1730324474092,0.05918532,2653.4,2653.1,0.55]
[1730324474393,0.05918532,2653.4,2653.1,4.31916]
[1730324475336,0.05918532,2653.4,2653.2,3.76901]
[1730324475633,0.7582,2653.3,2652.8,0.55]
[1730324475937,0.05907068,2653.2,2652.8,4.31958]
[1730324476237,0.7582,2653.3,2652.8,8.08916]
[1730324476422,0.7582,2653.3,2653.0,0.55]
[1730324476621,0.05907068,2653.2,2653.0,0.55]
[1730324477001,0.7582,2653.3,2653.0,0.55]
[1730324477539,0.05887195,2653.2,2653.0,0.55]
[1730324477702,0.7582,2653.3,2653.0,0.55]
[1730324477902,0.05887195,2653.2,2653.0,0.55]
[1730324478213,0.7582,2653.3,2653.0,0.55]